bitfinex-derivatives/quotes_SOLF0:USTF0_20250716
["timestamp","ask_amount","ask_price","bid_price","bid_amount"]
[1752704387272,3.37,175.6,175.57,1.83]
[1752704387472,3.37,175.59,175.58,3.22287946]
[1752704391574,3.37,175.61,175.6,1.83]
[1752704391775,3.37,175.61,175.58,3.22287946]
[1752704391776,3.37,175.61,175.58,5.05287946]
[1752704391971,5.6919,175.6,175.58,3.22287946]
[1752704392178,3.37,175.59,175.58,3.22287946]
[1752704392679,3.37,175.59,175.58,5.05287946]
[1752704393574,3.37,175.62,175.59,1.83]
[1752704393772,18.33051697,175.63,175.6,5.05287946]
[1752704393976,3.37,175.62,175.6,3.22287946]
[1752704394187,3.37,175.62,175.61,1.83]
[1752704394478,16.00941697,175.64,175.61,5.6913]
[1752704394680,12.63941697,175.64,175.62,3.22287946]
[1752704394983,3.37,175.66,175.63,5.6908]
[1752704394984,12.63941697,175.65,175.63,5.6908]
[1752704395288,3.37,175.66,175.64,3.22287946]
[1752704395483,3.37,175.66,175.64,8.91307946]
[1752704396184,3.37,175.66,175.64,3.22287946]
[1752704396379,3.37,175.65,175.64,3.22287946]
[1752704396778,3.37,175.65,175.6,0.39]
[1752704396979,3.37,175.65,175.64,3.22287946]
[1752704399686,3.37,175.69,175.64,3.61287946]
[1752704399888,3.37,175.69,175.66,3.22287946]
[1752704399889,3.37,175.68,175.66,3.22287946]
[1752704400392,3.37,175.67,175.66,3.22287946]
[1752704401288,12.63941697,175.7,175.65,3.22287946]
[1752704401592,3.37,175.66,175.65,3.22287946]
[1752704403188,3.37,175.66,175.65,3.62287946]
[1752704403490,3.26,175.72,175.66,0.4]
[1752704403785,3.26,175.72,175.6,0.4]
[1752704403988,3.26,175.72,175.7,5.6885]
[1752704404188,3.26,175.71,175.7,5.6885]
[1752704404584,3.26,175.71,175.69,3.22287946]
[1752704405087,3.26,175.7,175.69,3.22287946]
[1752704405297,3.26,175.7,175.69,9.31167946]
[1752704405483,3.26,175.7,175.69,3.22287946]
[1752704406288,3.26,175.72,175.7,0.4]
[1752704406790,3.26,175.72,175.71,3.22287946]
[1752704407195,8.9479,175.72,175.71,3.22287946]
[1752704407388,12.63941697,175.79,175.72,0.4]
[1752704407584,3.26,175.75,175.74,3.22287946]
[1752704408289,3.26,175.75,175.74,8.91007946]
[1752704408486,3.26,175.79,175.75,0.4]
[1752704408692,5.6858,175.79,175.77,3.22287946]
[1752704408886,3.26,175.79,175.78,3.62287946]
[1752704409594,3.26,175.79,175.78,3.22287946]
[1752704409793,3.26,175.79,175.69,0.4]
[1752704410095,3.26,175.77,175.7,3.22287946]
[1752704410291,3.26,175.77,175.72,3.22287946]
[1752704410692,3.22287946,175.76,175.66,0.4]
[1752704410885,3.26,175.7,175.68,3.22287946]
[1752704411086,3.26,175.75,175.68,3.22287946]
[1752704411898,5.6874,175.74,175.69,5.6886]
[1752704412195,3.26,175.73,175.69,5.6886]
[1752704412399,3.26,175.73,175.69,3.22287946]
[1752704412995,8.9476,175.73,175.69,3.22287946]
[1752704413294,3.26,175.71,175.69,3.22287946]
[1752704413495,3.26,175.72,175.69,3.22287946]
[1752704413796,3.26,175.71,175.69,8.91167946]
[1752704413992,3.26,175.73,175.69,3.62287946]
[1752704414298,3.26,175.72,175.7,5.6883]
[1752704414497,5.6872,175.75,175.7,5.6883]
[1752704414693,3.26,175.74,175.7,5.6883]
[1752704414901,3.26,175.73,175.69,3.22287946]
[1752704415098,3.26,175.73,175.69,3.62287946]
[1752704415603,3.26,175.73,175.7,5.6884]
[1752704415796,3.26,175.72,175.69,3.22287946]
[1752704416392,12.63941697,175.79,175.69,3.22287946]
[1752704416594,3.26,175.76,175.69,8.91147946]
[1752704417402,3.26,175.73,175.69,3.22287946]
[1752704417701,3.26,175.73,175.69,3.62287946]
[1752704417899,3.26,175.73,175.69,3.22287946]
[1752704418197,8.9476,175.73,175.69,8.91147946]
[1752704418402,5.6876,175.73,175.69,8.91147946]
[1752704418703,3.26,175.71,175.69,9.31147946]
[1752704419206,3.26,175.7,175.69,8.91147946]
[1752704419406,3.26,175.7,175.69,3.22287946]
[1752704419702,3.22287946,175.75,175.67,3.22287946]
[1752704419897,3.26,175.74,175.66,0.4]
[1752704420109,3.26,175.74,175.67,3.22287946]
[1752704420293,5.6887,175.7,175.67,3.22287946]
[1752704420493,3.26,175.69,175.67,3.22287946]
[1752704420999,3.26,175.75,175.67,8.91227946]
[1752704421297,3.26,175.75,175.67,3.22287946]
[1752704421597,3.26,175.7,175.67,3.22287946]
[1752704422398,3.26,175.7,175.67,8.91237946]
[1752704424003,3.26,175.69,175.65,3.22287946]
[1752704425110,3.26,175.67,175.65,3.22287946]
[1752704425806,8.9496,175.67,175.65,3.22287946]
[1752704426004,3.26,175.66,175.63,3.22287946]
[1752704426307,3.26,175.66,175.63,8.91347946]
[1752704426908,3.26,175.65,175.64,5.6904]
[1752704427708,3.26,175.65,175.63,9.31347946]
[1752704428606,3.26,175.65,175.63,3.22287946]
[1752704428899,3.26,175.65,175.61,3.22287946]
[1752704429208,3.26,175.62,175.61,3.22287946]
[1752704429505,3.26,175.62,175.6,5.6917]
[1752704430001,3.26,175.61,175.6,5.6917]
[1752704430409,3.26,175.61,175.6,6.0817]
[1752704430709,3.26,175.68,175.6,6.0817]
[1752704431004,3.26,175.68,175.61,5.6914]
[1752704431412,3.26,175.67,175.61,5.6914]
[1752704431612,3.26,175.64,175.61,5.6914]
[1752704432107,3.26,175.64,175.57,0.39]
[1752704432312,3.26,175.64,175.58,170.92287946]
[1752704432603,5.6914,175.62,175.58,176.61517946]
[1752704432811,3.26,175.64,175.57,3.22287946]
[1752704433308,12.63941697,175.66,175.56,491.46]
[1752704433309,3.38,175.59,175.56,491.46]
[1752704433706,3.38,175.59,175.55,3.22287946]
[1752704434112,5.6926,175.58,175.55,3.22287946]
[1752704434301,3.38,175.57,175.55,3.22287946]
[1752704434697,9.073,175.57,175.54,167.84]
[1752704434898,3.38,175.57,175.54,167.84]
[1752704435104,3.38,175.57,175.51,3.22287946]
[1752704436617,3.38,175.55,175.51,9.31747946]
[1752704437106,3.38,175.54,175.52,5.6943]
[1752704437313,12.63941697,175.62,175.53,3.62287946]
[1752704437314,3.38,175.55,175.53,3.62287946]
[1752704437709,3.38,175.59,175.53,3.22287946]
[1752704437908,3.38,175.59,175.52,3.22287946]
[1752704438111,3.22287946,175.6,175.5,171.08287946]
[1752704438112,3.38,175.57,175.5,171.08287946]
[1752704438312,3.38,175.55,175.48,3.22287946]
[1752704438616,3.38,175.55,175.48,171.20287946]
[1752704438805,3.38,175.52,175.48,176.89827946]
[1752704439003,3.38,175.52,175.48,171.20287946]
[1752704439206,5.6938,175.54,175.5,3.22287946]
[1752704439511,3.38,175.58,175.5,3.22287946]
[1752704440012,3.38,175.53,175.5,8.91777946]
[1752704440414,3.38,175.56,175.5,3.22287946]
[1752704440605,3.38,175.56,175.46,0.4]
[1752704440606,3.22287946,175.55,175.48,3.22287946]
[1752704440909,3.22287946,175.55,175.46,168.84]
[1752704440910,5.6952,175.5,175.46,174.1362]
[1752704441107,3.38,175.49,175.47,3.22287946]
[1752704441309,3.38,175.54,175.47,3.22287946]
[1752704441501,5.6944,175.52,175.47,3.22287946]
[1752704441706,3.38,175.51,175.49,3.22287946]
[1752704442519,3.38,175.51,175.46,0.4]
[1752704442520,3.38,175.5,175.47,3.22287946]
[1752704443115,3.22287946,175.55,175.47,3.22287946]
[1752704443421,3.38,175.54,175.47,3.22287946]
[1752704443605,5.695,175.51,175.47,8.91877946]
[1752704443811,3.38,175.54,175.47,3.22287946]
[1752704444013,3.38,175.54,175.49,3.22287946]
[1752704444314,5.6946,175.52,175.49,3.22287946]
[1752704444725,3.38,175.5,175.49,3.22287946]
[1752704445715,9.0751,175.5,175.48,3.22287946]
[1752704445918,3.38,175.49,175.48,3.22287946]
[1752704446114,3.38,175.49,175.46,3.22287946]
[1752704446516,3.22287946,175.55,175.46,3.22287946]
[1752704446822,14.60727946,175.59,175.48,3.22287946]
[1752704446823,3.38,175.54,175.48,3.22287946]
[1752704447019,3.38,175.52,175.48,3.22287946]
[1752704447722,5.6947,175.51,175.48,3.22287946]
[1752704447931,3.38,175.49,175.48,3.22287946]
[1752704448926,3.38,175.49,175.48,8.91847946]
[1752704449122,3.38,175.53,175.49,0.4]
[1752704449338,3.38,175.53,175.52,3.22287946]
[1752704449732,3.38,175.53,175.5,0.4]
[1752704450034,3.38,175.55,175.52,3.62287946]
[1752704450331,3.38,175.55,175.54,3.22287946]
[1752704450537,3.38,175.63,175.54,3.62287946]
[1752704450833,3.38,175.63,175.57,3.22287946]
[1752704451030,3.38,175.63,175.59,3.22287946]
[1752704451425,5.6916,175.61,175.59,3.22287946]
[1752704451625,3.38,175.6,175.59,3.22287946]
[1752704451821,3.38,175.6,175.51,0.4]
[1752704452025,5.6922,175.59,175.58,3.22287946]
[1752704452233,3.38,175.6,175.58,3.22287946]
[1752704452630,3.38,175.63,175.56,3.22287946]
[1752704452935,3.38,175.63,175.52,169.48]
[1752704453125,3.22287946,175.64,175.55,3.22287946]
[1752704453126,5.693,175.57,175.55,3.22287946]
[1752704453325,3.38,175.56,175.55,3.22287946]
[1752704455235,3.38,175.62,175.55,3.22287946]
[1752704455630,3.22287946,175.64,175.55,3.22287946]
[1752704455938,3.38,175.63,175.55,3.22287946]
[1752704456635,3.22287946,175.64,175.55,3.22287946]
[1752704456835,3.38,175.6,175.55,3.22287946]
[1752704457332,5.6923,175.59,175.55,3.22287946]
[1752704457532,3.38,175.58,175.55,3.22287946]
[1752704458233,3.38,175.58,175.53,3.22287946]
[1752704458536,3.22287946,175.56,175.48,3.22287946]
[1752704458738,3.38,175.55,175.48,3.22287946]
[1752704459832,3.38,175.51,175.48,3.22287946]
[1752704460234,3.38,175.51,175.48,8.91847946]
[1752704460529,504.51206072,175.63,175.51,0.4]
[1752704460530,3.38,175.61,175.51,0.4]
[1752704460727,3.38,175.61,175.56,8.91587946]
[1752704460926,12.67206072,175.64,175.58,3.22287946]
[1752704461127,3.38,175.6,175.58,0.4]
[1752704461435,3.38,175.6,175.59,3.22287946]
[1752704462035,3.38,175.6,175.57,3.22287946]
[1752704462332,3.38,175.6,175.57,8.91557946]
[1752704462541,3.38,175.59,175.57,8.91557946]
[1752704462836,3.38,175.58,175.57,8.91557946]
[1752704464733,3.36,175.6,175.57,9.31557946]
[1752704464933,3.36,175.68,175.59,3.62287946]
[1752704465136,3.36,175.68,175.62,3.22287946]
[1752704465641,3.36,175.63,175.62,3.22287946]
[1752704467646,3.36,175.63,175.6,3.22287946]
[1752704469935,5.6908,175.63,175.59,5.692]
[1752704470143,3.36,175.69,175.62,3.22287946]
[1752704470439,3.36,175.69,175.64,3.22287946]
[1752704470738,3.36,175.66,175.64,3.22287946]
[1752704473842,9.0498,175.66,175.64,3.22287946]
[1752704474043,3.36,175.65,175.62,5.6909]
[1752704474242,5.6898,175.66,175.64,3.22287946]
[1752704474745,3.36,175.65,175.64,3.22287946]
[1752704477447,3.36,175.68,175.62,3.22287946]
[1752704477945,5.6902,175.65,175.62,3.22287946]
[1752704478242,3.36,175.63,175.62,3.22287946]
[1752704478634,15.79927121,175.74,175.63,0.4]
[1752704478635,3.36,175.65,175.63,0.4]
[1752704478843,3.36,175.65,175.64,3.22287946]
[1752704479143,12.67206072,175.71,175.64,3.62287946]
[1752704479341,3.36,175.7,175.64,3.62287946]
[1752704479541,3.36,175.67,175.66,3.22287946]
[1752704479738,3.36,175.7,175.65,3.22287946]
[1752704479944,3.36,175.7,175.64,3.22287946]
[1752704480744,3.36,175.7,175.62,3.22287946]
[1752704480940,3.36,175.64,175.62,3.22287946]
[1752704481243,3.36,175.7,175.62,3.22287946]
[1752704481745,3.36,175.66,175.62,9.31367946]
[1752704481947,3.36,175.65,175.62,3.22287946]
[1752704482148,3.36,175.65,175.63,0.4]
[1752704482545,3.36,175.65,175.64,3.22287946]
[1752704483245,3.36,175.65,175.62,8.91387946]
[1752704483548,3.36,175.65,175.59,0.4]
[1752704483742,5.6903,175.65,175.62,3.22287946]
[1752704483945,3.36,175.64,175.62,3.22287946]
[1752704484250,3.36,175.63,175.62,8.91397946]
[1752704484549,3.36,175.65,175.62,9.31397946]
[1752704485150,3.36,175.64,175.62,9.31397946]
[1752704485547,3.36,175.65,175.62,6.0911]
[1752704485756,3.36,175.64,175.63,3.22287946]
[1752704486053,3.36,175.64,175.62,3.22287946]
[1752704487048,3.36,175.63,175.6,8.91457946]
[1752704487257,3.36,175.63,175.57,86.70583065]
[1752704487440,5.6921,175.6,175.57,86.70583065]
[1752704487639,3.36,175.63,175.57,86.70583065]
[1752704487640,6.58287946,175.63,175.57,86.70583065]
[1752704487846,3.36,175.62,175.57,86.70583065]
[1752704488345,3.36,175.58,175.54,3.62287946]
[1752704489151,15.89494018,175.62,175.54,3.62287946]
[1752704489349,3.36,175.57,175.54,3.22287946]
[1752704489659,3.36,175.57,175.55,0.4]
[1752704489951,3.36,175.57,175.55,6.0932]
[1752704490351,3.36,175.55,175.53,492.08]
[1752704490552,3.36,175.55,175.53,494.90287946]
[1752704490850,3.36,175.55,175.54,0.4]
[1752704491055,3.36,175.61,175.54,6.0937]
[1752704491252,3.36,175.6,175.54,6.0937]
[1752704492250,5.6926,175.58,175.54,6.0937]
[1752704492455,3.36,175.57,175.53,494.90287946]
[1752704492661,3.36,175.57,175.53,3.22287946]
[1752704492951,3.27,175.57,175.51,171.74287946]
[1752704493157,3.27,175.57,175.45,491.7]
[1752704493158,3.22287946,175.56,175.46,0.4]
[1752704493361,3.27,175.55,175.48,3.62287946]
[1752704493658,3.27,175.52,175.48,9.31837946]
[1752704493850,3.27,175.51,175.48,3.62287946]
[1752704494157,3.27,175.51,175.49,0.4]
[1752704495059,3.27,175.51,175.49,6.0952]
[1752704495457,3.27,175.5,175.49,5.6952]
[1752704495763,3.27,175.5,175.48,3.62287946]
[1752704496261,3.27,175.49,175.47,3.22287946]
[1752704496456,3.27,175.51,175.48,0.4]
[1752704496657,3.27,175.5,175.48,0.4]
[1752704497455,5.6947,175.51,175.48,0.4]
[1752704497658,3.27,175.49,175.47,8.91857946]
[1752704497954,3.27,175.49,175.47,9.31857946]
[1752704498258,3.27,175.49,175.48,0.4]
[1752704498452,5.6947,175.51,175.48,0.4]
[1752704498656,3.27,175.5,175.48,0.4]
[1752704498853,5.6947,175.51,175.48,0.4]
[1752704499055,3.27,175.49,175.48,0.4]
[1752704499250,3.27,175.48,175.45,660.66]
[1752704499463,3.27,175.47,175.45,663.88287946]
[1752704499966,3.22287946,175.52,175.44,3.22287946]
[1752704500166,3.27,175.51,175.45,168.6]
[1752704500667,3.27,175.48,175.45,168.6]
[1752704501267,3.27,175.48,175.46,3.62287946]
[1752704501760,12.67206072,175.55,175.47,0.4]
[1752704501967,3.27,175.58,175.53,3.62287946]
[1752704502169,3.27,175.58,175.55,3.22287946]
[1752704502869,5.693,175.56,175.55,3.22287946]
[1752704503057,3.27,175.56,175.55,3.22287946]
[1752704504567,12.79074029,175.56,175.55,3.22287946]
[1752704504866,3.27,175.56,175.55,3.22287946]
[1752704505163,3.27,175.57,175.55,3.62287946]
[1752704506168,3.27,175.58,175.56,0.4]
[1752704506463,3.27,175.58,175.57,3.22287946]
[1752704506667,3.27,175.58,175.56,0.4]
[1752704506668,8.9626,175.58,175.54,0.4]
[1752704506874,3.27,175.57,175.56,3.22287946]
[1752704507568,3.27,175.57,175.56,3.62287946]
[1752704507769,3.27,175.57,175.56,3.22287946]
[1752704508066,3.27,175.59,175.56,3.62287946]
[1752704508364,9.52074029,175.61,175.59,3.22287946]
[1752704508578,12.79074029,175.62,175.6,0.4]
[1752704508866,12.79074029,175.64,175.61,3.62287946]
[1752704509070,3.27,175.63,175.6,0.4]
[1752704509266,3.27,175.64,175.63,3.22287946]
[1752704511668,3.27,175.66,175.63,3.62287946]
[1752704511862,3.27,175.66,175.65,3.22287946]
[1752704512063,12.79074029,175.67,175.65,3.62287946]
[1752704512264,3.27,175.67,175.65,3.62287946]
[1752704512773,9.52074029,175.7,175.66,0.4]
[1752704513071,12.79074029,175.7,175.69,3.22287946]
[1752704513266,3.27,175.7,175.69,3.22287946]
[1752704514560,8.9585,175.7,175.69,3.22287946]
[1752704515275,3.27,175.7,175.69,3.22287946]
[1752704517376,3.27,175.7,175.69,3.62287946]
[1752704517576,3.27,175.71,175.69,3.62287946]
[1752704518172,3.27,175.71,175.69,0.4]
[1752704518368,3.27,175.71,175.7,3.22287946]
[1752704518568,3.27,175.73,175.71,0.4]
[1752704518778,3.27,175.73,175.72,3.22287946]
[1752704520874,3.27,175.73,175.7,3.22287946]
[1752704521073,3.27,175.73,175.68,3.22287946]
[1752704521375,3.27,175.7,175.68,3.22287946]
[1752704522081,3.27,175.69,175.68,3.22287946]
[1752704523077,3.27,175.74,175.68,3.62287946]
[1752704523382,8.9572,175.74,175.7,3.22287946]
[1752704523573,3.29,175.73,175.7,3.22287946]
[1752704524178,3.29,175.75,175.72,3.22287946]
[1752704524878,3.29,175.74,175.72,3.22287946]
[1752704525280,3.29,175.73,175.72,3.22287946]
[1752704528082,3.29,175.73,175.7,3.22287946]
[1752704529388,3.29,175.72,175.67,5.6893]
[1752704529574,3.29,175.72,175.7,3.22287946]
[1752704529884,5.6879,175.72,175.7,3.22287946]
[1752704530079,3.29,175.71,175.66,0.39]
[1752704530284,3.29,175.71,175.47,351.0]
[1752704530285,3.29,175.71,175.68,3.22287946]
[1752704530486,3.29,175.71,175.66,3.22287946]
[1752704530690,3.29,175.71,175.64,3.22287946]
[1752704530883,3.29,175.71,175.6,0.39]
[1752704530884,3.29,175.7,175.6,0.39]
[1752704531089,5.6895,175.67,175.61,3.22287946]
[1752704531388,3.29,175.66,175.61,3.22287946]
[1752704531586,3.29,175.66,175.63,3.22287946]
[1752704532989,3.29,175.65,175.63,3.22287946]
[1752704534990,3.29,175.64,175.63,3.22287946]
[1752704535193,3.22287946,175.71,175.63,3.22287946]
[1752704535388,3.22287946,175.71,175.63,3.61287946]
[1752704535688,3.29,175.65,175.63,3.61287946]
[1752704535893,3.29,175.67,175.65,0.39]
[1752704536091,5.6889,175.69,175.65,3.61287946]
[1752704536285,3.29,175.66,175.65,3.61287946]
[1752704536491,3.29,175.66,175.65,3.22287946]
[1752704539288,3.29,175.66,175.63,3.22287946]
[1752704539496,5.69,175.65,175.63,3.22287946]
[1752704539698,3.29,175.64,175.63,3.22287946]
[1752704541606,3.29,175.63,175.61,3.22287946]
[1752704541999,3.29,175.63,175.59,3.22287946]
[1752704542297,3.29,175.62,175.59,3.22287946]
[1752704545303,3.29,175.62,175.59,8.91477946]
[1752704545497,3.29,175.68,175.61,3.22287946]
[1752704546595,3.29,175.64,175.61,3.61287946]
[1752704546902,5.6902,175.65,175.61,3.61287946]
[1752704547107,3.29,175.62,175.61,3.61287946]
[1752704547607,3.29,175.62,175.61,3.22287946]
[1752704550605,3.29,175.62,175.59,5.6919]
[1752704550805,3.29,175.62,175.6,3.22287946]
[1752704552006,3.29,175.68,175.61,3.22287946]
[1752704552707,5.69,175.65,175.61,3.22287946]
[1752704552900,3.29,175.64,175.61,3.22287946]
[1752704553607,8.9803,175.64,175.61,3.22287946]
[1752704553810,3.28,175.63,175.59,6.0819]
[1752704554010,3.28,175.63,175.59,9.30477946]
[1752704554811,3.28,175.63,175.6,5.6915]
[1752704555513,3.28,175.63,175.61,3.22287946]
[1752704555912,12.67206072,175.69,175.62,0.39]
[1752704556208,3.28,175.7,175.65,3.22287946]
[1752704556412,8.9685,175.7,175.65,8.91277946]
[1752704556710,3.28,175.69,175.65,3.22287946]
[1752704558206,5.6889,175.69,175.65,3.22287946]
[1752704558409,3.28,175.68,175.65,3.22287946]
[1752704559011,3.28,175.68,175.65,8.91277946]
[1752704559216,3.28,175.72,175.67,3.22287946]
[1752704559404,8.9682,175.71,175.67,3.22287946]
[1752704559602,3.28,175.7,175.67,3.22287946]
[1752704560004,3.28,175.68,175.67,3.22287946]
[1752704561410,3.28,175.68,175.65,3.22287946]
[1752704562112,3.28,175.68,175.67,3.22287946]
[1752704562318,3.28,175.71,175.67,3.61287946]
[1752704562617,3.28,175.71,175.7,3.22287946]
[1752704565616,3.28,175.71,175.68,5.6888]
[1752704565816,3.28,175.71,175.69,3.22287946]
[1752704566318,8.9683,175.71,175.69,3.22287946]
[1752704566517,3.28,175.7,175.67,5.6893]
[1752704566818,3.28,175.7,175.68,3.22287946]
[1752704567113,12.67206072,175.73,175.68,9.30187946]
[1752704567317,3.28,175.71,175.7,3.22287946]
[1752704568221,3.28,175.71,175.67,5.6892]
[1752704568416,3.28,175.71,175.67,8.91207946]
[1752704568631,3.28,175.7,175.67,8.91207946]
[1752704568815,3.28,175.7,175.67,3.22287946]
[1752704569118,5.6884,175.7,175.67,3.22287946]
[1752704569420,3.28,175.69,175.67,3.22287946]
[1752704572612,3.28,175.69,175.66,3.22287946]
[1752704574115,5.6887,175.69,175.66,3.22287946]
[1752704574321,3.28,175.68,175.66,3.22287946]
[1752704575318,3.28,175.68,175.66,8.91247946]
[1752704575521,3.28,175.68,175.66,3.22287946]
[1752704576816,3.28,175.68,175.65,5.6898]
[1752704577021,3.28,175.68,175.65,3.22287946]
[1752704577616,3.28,175.67,175.65,3.22287946]
[1752704577818,3.28,175.67,175.61,3.22287946]
[1752704578018,3.28,175.65,175.61,3.61287946]
[1752704579021,8.97,175.65,175.61,9.30397946]
[1752704579323,12.67206072,175.66,175.61,3.61287946]
[1752704579508,3.28,175.63,175.61,3.61287946]
[1752704579708,3.28,175.62,175.61,3.61287946]
[1752704579921,3.28,175.62,175.61,9.30397946]
[1752704580622,5.6902,175.65,175.62,5.6908]
[1752704580827,3.28,175.62,175.61,3.61287946]
[1752704581122,3.28,175.62,175.61,9.30397946]
[1752704582230,3.28,175.64,175.62,5.6908]
[1752704582526,3.28,175.64,175.63,3.22287946]
[1752704583223,3.28,175.64,175.63,8.91347946]
[1752704584726,3.28,175.64,175.63,3.22287946]
[1752704587126,3.28,175.64,175.63,8.91347946]
[1752704587522,8.78,175.65,175.63,9.30347946]
[1752704587721,3.09,175.65,175.63,9.30347946]
[1752704588231,3.09,175.64,175.63,9.30347946]
[1752704589425,3.09,175.64,175.63,8.91347946]
[1752704590229,3.09,175.64,175.63,9.30347946]
[1752704590531,8.7796,175.67,175.64,5.69]
[1752704590730,3.09,175.66,175.65,3.22287946]
[1752704592231,8.7797,175.66,175.65,3.22287946]
[1752704593729,8.7797,175.66,175.63,8.91337946]
[1752704593930,3.09,175.65,175.63,8.91337946]
[1752704594429,3.09,175.64,175.63,9.30337946]
[1752704594630,3.09,175.64,175.63,8.91337946]
[1752704594830,3.09,175.64,175.63,9.30337946]
[1752704595026,3.09,175.66,175.64,5.6902]
[1752704597334,3.09,175.66,175.65,9.30287946]
[1752704597538,12.74226025,175.68,175.65,3.61287946]
[1752704597738,3.09,175.67,175.65,3.22287946]
[1752704598042,3.09,175.67,175.61,3.22287946]
[1752704598241,3.09,175.64,175.61,3.22287946]
[1752704598445,3.09,175.64,175.61,8.91397946]
[1752704598635,3.09,175.64,175.6,168.26]
[1752704598839,15.83226025,175.64,175.6,168.26]
[1752704599034,15.83226025,175.64,175.58,3.22287946]
[1752704599035,3.09,175.63,175.58,3.22287946]
[1752704599241,3.09,175.61,175.58,3.22287946]
[1752704600141,3.09,175.62,175.6,8.91427946]
[1752704600345,3.09,175.61,175.6,3.22287946]
[1752704600838,12.74226025,175.64,175.6,3.22287946]
[1752704601046,3.09,175.65,175.63,3.61287946]
[1752704601445,3.09,175.67,175.63,3.61287946]
[1752704601956,3.09,175.67,175.63,3.22287946]
[1752704602549,18.43146025,175.68,175.63,3.22287946]
[1752704602550,3.09,175.66,175.63,3.22287946]
[1752704603649,15.83226025,175.66,175.61,3.22287946]
[1752704603953,3.09,175.65,175.61,8.91387946]
[1752704604151,3.09,175.65,175.61,3.61287946]
[1752704604349,3.09,175.65,175.61,8.91407946]
[1752704604852,3.09,175.65,175.61,3.22287946]
[1752704605053,3.09,175.65,175.61,3.61287946]
[1752704605254,3.09,175.65,175.62,5.6909]
[1752704606355,3.09,175.65,175.61,8.91407946]
[1752704606652,3.09,175.65,175.61,3.22287946]
[1752704607348,3.09,175.65,175.63,3.22287946]
[1752704611551,3.09,175.64,175.63,0.65828575]
[1752704612252,12.74226025,175.64,175.61,5.6911]
[1752704612554,3.09,175.63,175.61,5.6911]
[1752704612755,3.09,175.63,175.6,8.91437946]
[1752704613161,3.09,175.63,175.6,3.22287946]
[1752704613357,3.36,175.62,175.6,3.22287946]
[1752704614059,12.74226025,175.64,175.6,3.22287946]
[1752704614260,3.36,175.61,175.6,3.22287946]
[1752704614453,3.36,175.61,175.6,8.91437946]
[1752704614854,3.36,175.6,175.59,168.41]
[1752704615051,3.36,175.6,175.59,171.63287946]
[1752704615555,18.43266025,175.64,175.59,171.63287946]
[1752704615952,3.36,175.61,175.6,6.0815]
[1752704616153,3.36,175.63,175.6,0.39]
[1752704616353,3.36,175.63,175.62,3.22287946]
[1752704616857,3.36,175.63,175.62,8.91377946]
[1752704620063,3.36,175.63,175.62,3.22287946]
[1752704620468,3.36,175.63,175.61,5.6911]
[1752704620663,3.36,175.62,175.6,3.22287946]
[1752704622370,3.36,175.62,175.6,8.91447946]
[1752704622570,3.36,175.62,175.6,3.22287946]
[1752704623873,3.36,175.62,175.59,167.74]
[1752704625172,9.0511,175.62,175.59,167.74]
[1752704625580,5.6911,175.62,175.59,167.74]
[1752704625766,5.6907,175.63,175.59,173.4319]
[1752704625968,3.36,175.6,175.59,173.8219]
[1752704626875,3.36,175.6,175.59,168.13]
[1752704627066,3.36,175.6,175.59,171.35287946]
[1752704627674,3.36,175.63,175.59,170.96287946]